Workbook

Sheet énoncé
B20: questions : | I20: d'après dcg 2012
B21: 1) complétez la feuille de calcul application avec les formules manquantes
B22: 2) élaborez les récapitulatifs par salarié et par chantier (TCD/Somme.si)
B23: 3) en quoi cette application est elle mal structurée ?
B24: 4) modifiez l'application pour la rendre opérationnelle
B25: 5) sécurisez votre nouvelle application

Sheet tables
A1: ANNEXE 3
A2: Extrait de la feuille de calcul « salariés »
A3: A | B3: B | C3: C | D3: D | E3: E
A4: Matricule | B4: Nom | C4: Prénom | D4: Qualification | E4: Niveau
A5: 221 | B5: nom1 | C5: prenom1 | D5: 2 | E5: 2
A6: 222 | B6: nom2 | C6: prenom2 | D6: 5 | E6: 1 | G6: tabsal : $a$5:$e$35
A7: 223 | B7: nom3 | C7: prenom3 | D7: 3 | E7: 1
A8: 224 | B8: nom4 | C8: prenom4 | D8: 1 | E8: 2 | G8: tabqualif : $a$39:$d$44
A9: 225 | B9: nom5 | C9: prenom5 | D9: 2 | E9: 2
A10: 226 | B10: nom6 | C10: prenom6 | D10: 2 | E10: 1
A11: 227 | B11: nom7 | C11: prenom7 | D11: 4 | E11: 1
A12: 228 | B12: nom8 | C12: prenom8 | D12: 5 | E12: 1
A13: 229 | B13: nom9 | C13: prenom9 | D13: 1 | E13: 1
A14: 230 | B14: nom10 | C14: prenom10 | D14: 6 | E14: 1
A15: 231 | B15: nom11 | C15: prenom11 | D15: 4 | E15: 2
A16: 232 | B16: nom12 | C16: prenom12 | D16: 4 | E16: 2
A17: 233 | B17: nom13 | C17: prenom13 | D17: 5 | E17: 1
A18: 234 | B18: nom14 | C18: prenom14 | D18: 6 | E18: 1
A19: 235 | B19: nom15 | C19: prenom15 | D19: 1 | E19: 1
A20: 236 | B20: nom16 | C20: prenom16 | D20: 2 | E20: 1
A21: 237 | B21: nom17 | C21: prenom17 | D21: 5 | E21: 2
A22: 238 | B22: nom18 | C22: prenom18 | D22: 1 | E22: 2
A23: 239 | B23: nom19 | C23: prenom19 | D23: 5 | E23: 2
A24: 240 | B24: nom20 | C24: prenom20 | D24: 1 | E24: 1
A25: 241 | B25: nom21 | C25: prenom21 | D25: 1 | E25: 1
A26: 242 | B26: nom22 | C26: prenom22 | D26: 1 | E26: 1
A27: 243 | B27: nom23 | C27: prenom23 | D27: 3 | E27: 2
A28: 244 | B28: nom24 | C28: prenom24 | D28: 5 | E28: 2
A29: 245 | B29: nom25 | C29: prenom25 | D29: 2 | E29: 2
A30: 246 | B30: nom26 | C30: prenom26 | D30: 2 | E30: 1
A31: 247 | B31: nom27 | C31: prenom27 | D31: 3 | E31: 1
A32: 248 | B32: nom28 | C32: prenom28 | D32: 3 | E32: 2
A33: 249 | B33: nom29 | C33: prenom29 | D33: 6 | E33: 1
A34: 250 | B34: nom30 | C34: prenom30 | D34: 6 | E34: 1
A35: 251 | B35: nom31 | C35: prenom31 | D35: 6 | E35: 1
A37: qualifications
A38: Qualification | B38: Désignation | C38: Niveau 1 | D38: Niveau 2
A39: 1 | B39: Apprenti | C39: 5.55 | D39: 6.28
A40: 2 | B40: Ouvrier d’exécution | C40: 9.21 | D40: 9.43
A41: 3 | B41: Ouvrier professionnel | C41: 9.99 | D41: 10.25
A42: 4 | B42: Compagnon | C42: 10.93 | D42: 11.68
A43: 5 | B43: Maître ouvrier | C43: 12.43 | D43: 13.19
A44: 6 | B44: Chef d’équipe | C44: 14.15 | D44: 15.5

Sheet application
A1: RECAPITULATIF DES HEURES EFFECTUEES SUR UNE SEMAINE DONNEE
A3: Année : | E3: 2012 | F3: Semaine 21 | G3: du | H3: =MIN(A5:A67) -> 2012-05-21 | I3: au | S3: =MAX(A5:A67) -> 2012-05-24 | X3: nblignes | Y3: =COUNT(A4:A67) -> 50
A4: date | B4: mois | C4: annee | D4: Numéro de semaine | E4: Matricule | F4: Nom | G4: Prénom | H4: Chantier | I4: Temps | J4: temps total pour tous le salariés | K4: temps cumulé à la date par salarié | L4: 0-35 | M4: 36-43 | N4: >43 | O4: temps cumulé à la date-1 par salarié | P4: 0-35 | Q4: 36-43 | R4: >43 | S4: 1 | T4: 1.25 | U4: 1.5 | V4: qualif | W4: niveau | X4: taux horaire de base | Y4: Montant
A5: 2012-05-21 | B5: =IF(ISBLANK(A5),"",MONTH(A5)) -> 5 | C5: =IF(ISBLANK(A5),"",YEAR(A5)) -> 2012 | D5: =WEEKNUM(A5) -> 21 | E5: 231 | F5: =IF(ISBLANK($E5),"",VLOOKUP($E5,tabsal,2,0)) -> nom11 | G5: =IF(ISBLANK($E5),"",VLOOKUP($E5,tabsal,3,0)) -> prenom11 | H5: C120401 | I5: 6 | J5: =SUM($I$5:I5) -> 6 | K5: =SUMIF($E$5:E5,E5,$I$5:I5) -> 6 | L5: =MIN(K5,35) -> 6 | M5: =MIN(K5-L5,8) -> 0 | N5: =K5-L5-M5 -> 0 | O5: 0 | P5: =MIN(O5,35) -> 0 | Q5: =MIN(O5-P5,8) -> 0 | R5: =O5-P5-Q5 -> 0 | S5: =L5-P5 -> 6 | T5: =M5-Q5 -> 0 | U5: 0 | V5: =VLOOKUP(E5,tabsal,4,0) -> 4 | W5: =VLOOKUP(E5,tabsal,5,0) -> 2 | X5: =VLOOKUP(VLOOKUP(application!E5,tabsal,4,0),tabqualif,VLOOKUP(application!E5,tabsal,5,0)+2,0) -> 11.68 | Y5: =CEILING((S5+T5*1.25+U5*1.5)*X5,0.01) -> 70.08
A6: 2012-05-21 | B6: =IF(ISBLANK(A6),"",MONTH(A6)) -> 5 | C6: =IF(ISBLANK(A6),"",YEAR(A6)) -> 2012 | D6: =WEEKNUM(A6) -> 21 | E6: 245 | F6: nom25 | G6: prenom25 | H6: C120401 | I6: 4 | J6: =SUM($I$5:I6) -> 10 | K6: =SUMIF($E$5:E6,E6,$I$5:I6) -> 4 | L6: =MIN(K6,35) -> 4 | M6: =MIN(K6-L6,8) -> 0 | N6: 0 | O6: =SUMIF($E$5:E5,E6,$I$5:I5) -> 0 | P6: =MIN(O6,35) -> 0 | Q6: =MIN(O6-P6,8) -> 0 | R6: =O6-P6-Q6 -> 0 | S6: =L6-P6 -> 4 | T6: =M6-Q6 -> 0 | U6: =N6-R6 -> 0 | V6: 2 | W6: 2 | X6: =VLOOKUP(VLOOKUP(application!E6,tabsal,4,0),tabqualif,VLOOKUP(application!E6,tabsal,5,0)+2,0) -> 9.43 | Y6: =CEILING((S6+T6*1.25+U6*1.5)*X6,0.01) -> 37.72
A7: 2012-05-21 | B7: 5 | C7: 2012 | D7: 21 | E7: 229 | F7: nom9 | G7: prenom9 | H7: C120402 | I7: 15 | J7: =SUM($I$5:I7) -> 25 | K7: =SUMIF($E$5:E7,E7,$I$5:I7) -> 15 | L7: 15 | M7: 0 | N7: 0 | O7: =SUMIF($E$5:E6,E7,$I$5:I6) -> 0 | P7: 0 | Q7: 0 | R7: 0 | S7: 15 | T7: 0 | U7: 0 | V7: 1 | W7: 1 | X7: =VLOOKUP(VLOOKUP(application!E7,tabsal,4,0),tabqualif,VLOOKUP(application!E7,tabsal,5,0)+2,0) -> 5.55 | Y7: 83.25
A8: 2012-05-21 | B8: 5 | C8: 2012 | D8: 21 | E8: 249 | F8: nom29 | G8: prenom29 | H8: C120403 | I8: 5 | K8: =SUMIF($E$5:E8,E8,$I$5:I8) -> 5 | L8: 5 | M8: 0 | N8: 0 | O8: =SUMIF($E$5:E7,E8,$I$5:I7) -> 0 | P8: 0 | Q8: 0 | R8: 0 | S8: 5 | T8: 0 | U8: 0 | V8: 6 | W8: 1 | X8: =VLOOKUP(VLOOKUP(application!E8,tabsal,4,0),tabqualif,VLOOKUP(application!E8,tabsal,5,0)+2,0) -> 14.15 | Y8: 70.75
A9: 2012-05-21 | B9: 5 | C9: 2012 | D9: 21 | E9: 246 | F9: nom26 | G9: prenom26 | H9: C120404 | I9: 4 | K9: =SUMIF($E$5:E9,E9,$I$5:I9) -> 4 | L9: 4 | M9: 0 | N9: 0 | O9: =SUMIF($E$5:E8,E9,$I$5:I8) -> 0 | P9: 0 | Q9: 0 | R9: 0 | S9: 4 | T9: 0 | U9: 0 | V9: 2 | W9: 1 | X9: =VLOOKUP(VLOOKUP(application!E9,tabsal,4,0),tabqualif,VLOOKUP(application!E9,tabsal,5,0)+2,0) -> 9.21 | Y9: 36.84
A10: 2012-05-21 | B10: 5 | C10: 2012 | D10: 21 | E10: 224 | F10: nom4 | G10: prenom4 | H10: C120405 | I10: 14 | K10: =SUMIF($E$5:E10,E10,$I$5:I10) -> 14 | L10: 14 | M10: 0 | N10: 0 | O10: =SUMIF($E$5:E9,E10,$I$5:I9) -> 0 | P10: 0 | Q10: 0 | R10: 0 | S10: 14 | T10: 0 | U10: 0 | V10: 1 | W10: 2 | X10: =VLOOKUP(VLOOKUP(application!E10,tabsal,4,0),tabqualif,VLOOKUP(application!E10,tabsal,5,0)+2,0) -> 6.28 | Y10: 87.92
A11: 2012-05-21 | B11: 5 | C11: 2012 | D11: 21 | E11: 233 | F11: nom13 | G11: prenom13 | H11: C120408 | I11: 9 | K11: =SUMIF($E$5:E11,E11,$I$5:I11) -> 9 | L11: 9 | M11: 0 | N11: 0 | O11: =SUMIF($E$5:E10,E11,$I$5:I10) -> 0 | P11: 0 | Q11: 0 | R11: 0 | S11: 9 | T11: 0 | U11: 0 | V11: 5 | W11: 1 | X11: =VLOOKUP(VLOOKUP(application!E11,tabsal,4,0),tabqualif,VLOOKUP(application!E11,tabsal,5,0)+2,0) -> 12.43 | Y11: 111.87
A12: 2012-05-21 | B12: 5 | C12: 2012 | D12: 21 | E12: 235 | F12: nom15 | G12: prenom15 | H12: C120409 | I12: 6 | K12: =SUMIF($E$5:E12,E12,$I$5:I12) -> 6 | L12: 6 | M12: 0 | N12: 0 | O12: =SUMIF($E$5:E11,E12,$I$5:I11) -> 0 | P12: 0 | Q12: 0 | R12: 0 | S12: 6 | T12: 0 | U12: 0 | V12: 1 | W12: 1 | X12: =VLOOKUP(VLOOKUP(application!E12,tabsal,4,0),tabqualif,VLOOKUP(application!E12,tabsal,5,0)+2,0) -> 5.55 | Y12: 33.3
A13: 2012-05-21 | B13: 5 | C13: 2012 | D13: 21 | E13: 222 | F13: nom2 | G13: prenom2 | H13: C120410 | I13: 13 | K13: =SUMIF($E$5:E13,E13,$I$5:I13) -> 13 | L13: 13 | M13: 0 | N13: 0 | O13: =SUMIF($E$5:E12,E13,$I$5:I12) -> 0 | P13: 0 | Q13: 0 | R13: 0 | S13: 13 | T13: 0 | U13: 0 | V13: 5 | W13: 1 | X13: =VLOOKUP(VLOOKUP(application!E13,tabsal,4,0),tabqualif,VLOOKUP(application!E13,tabsal,5,0)+2,0) -> 12.43 | Y13: 161.59
A14: 2012-05-22 | B14: 5 | C14: 2012 | D14: 21 | E14: 227 | F14: nom7 | G14: prenom7 | H14: C120401 | I14: 5 | K14: =SUMIF($E$5:E14,E14,$I$5:I14) -> 5 | L14: 5 | M14: 0 | N14: 0 | O14: =SUMIF($E$5:E13,E14,$I$5:I13) -> 0 | P14: 0 | Q14: 0 | R14: 0 | S14: 5 | T14: 0 | U14: 0 | V14: 4 | W14: 1 | X14: =VLOOKUP(VLOOKUP(application!E14,tabsal,4,0),tabqualif,VLOOKUP(application!E14,tabsal,5,0)+2,0) -> 10.93 | Y14: 54.65
A15: 2012-05-22 | B15: 5 | C15: 2012 | D15: 21 | E15: 223 | F15: nom3 | G15: prenom3 | H15: C120401 | I15: 7 | K15: =SUMIF($E$5:E15,E15,$I$5:I15) -> 7 | L15: 7 | M15: 0 | N15: 0 | O15: =SUMIF($E$5:E14,E15,$I$5:I14) -> 0 | P15: 0 | Q15: 0 | R15: 0 | S15: 7 | T15: 0 | U15: 0 | V15: 3 | W15: 1 | X15: =VLOOKUP(VLOOKUP(application!E15,tabsal,4,0),tabqualif,VLOOKUP(application!E15,tabsal,5,0)+2,0) -> 9.99 | Y15: 69.93
A16: 2012-05-22 | B16: 5 | C16: 2012 | D16: 21 | E16: 221 | F16: nom1 | G16: prenom1 | H16: C120402 | I16: 6 | K16: =SUMIF($E$5:E16,E16,$I$5:I16) -> 6 | L16: 6 | M16: 0 | N16: 0 | O16: =SUMIF($E$5:E15,E16,$I$5:I15) -> 0 | P16: 0 | Q16: 0 | R16: 0 | S16: 6 | T16: 0 | U16: 0 | V16: 2 | W16: 2 | X16: =VLOOKUP(VLOOKUP(application!E16,tabsal,4,0),tabqualif,VLOOKUP(application!E16,tabsal,5,0)+2,0) -> 9.43 | Y16: 56.58
A17: 2012-05-22 | B17: 5 | C17: 2012 | D17: 21 | E17: 246 | F17: nom26 | G17: prenom26 | H17: C120402 | I17: 4 | K17: =SUMIF($E$5:E17,E17,$I$5:I17) -> 8 | L17: 8 | M17: 0 | N17: 0 | O17: =SUMIF($E$5:E16,E17,$I$5:I16) -> 4 | P17: 4 | Q17: 0 | R17: 0 | S17: 4 | T17: 0 | U17: 0 | V17: 2 | W17: 1 | X17: =VLOOKUP(VLOOKUP(application!E17,tabsal,4,0),tabqualif,VLOOKUP(application!E17,tabsal,5,0)+2,0) -> 9.21 | Y17: 36.84
A18: 2012-05-22 | B18: 5 | C18: 2012 | D18: 21 | E18: 238 | F18: nom18 | G18: prenom18 | H18: C120402 | I18: 5 | K18: =SUMIF($E$5:E18,E18,$I$5:I18) -> 5 | L18: 5 | M18: 0 | N18: 0 | O18: =SUMIF($E$5:E17,E18,$I$5:I17) -> 0 | P18: 0 | Q18: 0 | R18: 0 | S18: 5 | T18: 0 | U18: 0 | V18: 1 | W18: 2 | X18: =VLOOKUP(VLOOKUP(application!E18,tabsal,4,0),tabqualif,VLOOKUP(application!E18,tabsal,5,0)+2,0) -> 6.28 | Y18: 31.4
A19: 2012-05-22 | B19: 5 | C19: 2012 | D19: 21 | E19: 222 | F19: nom2 | G19: prenom2 | H19: C120403 | I19: 9 | K19: =SUMIF($E$5:E19,E19,$I$5:I19) -> 22 | L19: 22 | M19: 0 | N19: 0 | O19: =SUMIF($E$5:E18,E19,$I$5:I18) -> 13 | P19: 13 | Q19: 0 | R19: 0 | S19: 9 | T19: 0 | U19: 0 | V19: 5 | W19: 1 | X19: =VLOOKUP(VLOOKUP(application!E19,tabsal,4,0),tabqualif,VLOOKUP(application!E19,tabsal,5,0)+2,0) -> 12.43 | Y19: 111.87
A20: 2012-05-22 | B20: 5 | C20: 2012 | D20: 21 | E20: 246 | F20: nom26 | G20: prenom26 | H20: C120403 | I20: 14 | K20: =SUMIF($E$5:E20,E20,$I$5:I20) -> 22 | L20: 22 | M20: 0 | N20: 0 | O20: =SUMIF($E$5:E19,E20,$I$5:I19) -> 8 | P20: 8 | Q20: 0 | R20: 0 | S20: 14 | T20: 0 | U20: 0 | V20: 2 | W20: 1 | X20: =VLOOKUP(VLOOKUP(application!E20,tabsal,4,0),tabqualif,VLOOKUP(application!E20,tabsal,5,0)+2,0) -> 9.21 | Y20: 128.94
A21: 2012-05-22 | B21: 5 | C21: 2012 | D21: 21 | E21: 243 | F21: nom23 | G21: prenom23 | H21: C120403 | I21: 14 | K21: =SUMIF($E$5:E21,E21,$I$5:I21) -> 14 | L21: 14 | M21: 0 | N21: 0 | O21: =SUMIF($E$5:E20,E21,$I$5:I20) -> 0 | P21: 0 | Q21: 0 | R21: 0 | S21: 14 | T21: 0 | U21: 0 | V21: 3 | W21: 2 | X21: =VLOOKUP(VLOOKUP(application!E21,tabsal,4,0),tabqualif,VLOOKUP(application!E21,tabsal,5,0)+2,0) -> 10.25 | Y21: 143.5
A22: 2012-05-22 | B22: 5 | C22: 2012 | D22: 21 | E22: 227 | F22: nom7 | G22: prenom7 | H22: C120403 | I22: 9 | K22: =SUMIF($E$5:E22,E22,$I$5:I22) -> 14 | L22: 14 | M22: 0 | N22: 0 | O22: =SUMIF($E$5:E21,E22,$I$5:I21) -> 5 | P22: 5 | Q22: 0 | R22: 0 | S22: 9 | T22: 0 | U22: 0 | V22: 4 | W22: 1 | X22: =VLOOKUP(VLOOKUP(application!E22,tabsal,4,0),tabqualif,VLOOKUP(application!E22,tabsal,5,0)+2,0) -> 10.93 | Y22: 98.37
A23: 2012-05-22 | B23: 5 | C23: 2012 | D23: 21 | E23: 240 | F23: nom20 | G23: prenom20 | H23: C120404 | I23: 10 | K23: =SUMIF($E$5:E23,E23,$I$5:I23) -> 10 | L23: 10 | M23: 0 | N23: 0 | O23: =SUMIF($E$5:E22,E23,$I$5:I22) -> 0 | P23: 0 | Q23: 0 | R23: 0 | S23: 10 | T23: 0 | U23: 0 | V23: 1 | W23: 1 | X23: =VLOOKUP(VLOOKUP(application!E23,tabsal,4,0),tabqualif,VLOOKUP(application!E23,tabsal,5,0)+2,0) -> 5.55 | Y23: 55.5
A24: 2012-05-22 | B24: 5 | C24: 2012 | D24: 21 | E24: 248 | F24: nom28 | G24: prenom28 | H24: C120404 | I24: 10 | K24: =SUMIF($E$5:E24,E24,$I$5:I24) -> 10 | L24: 10 | M24: 0 | N24: 0 | O24: =SUMIF($E$5:E23,E24,$I$5:I23) -> 0 | P24: 0 | Q24: 0 | R24: 0 | S24: 10 | T24: 0 | U24: 0 | V24: 3 | W24: 2 | X24: =VLOOKUP(VLOOKUP(application!E24,tabsal,4,0),tabqualif,VLOOKUP(application!E24,tabsal,5,0)+2,0) -> 10.25 | Y24: 102.5
A25: 2012-05-22 | B25: 5 | C25: 2012 | D25: 21 | E25: 235 | F25: nom15 | G25: prenom15 | H25: C120405 | I25: 11 | K25: =SUMIF($E$5:E25,E25,$I$5:I25) -> 17 | L25: 17 | M25: 0 | N25: 0 | O25: =SUMIF($E$5:E24,E25,$I$5:I24) -> 6 | P25: 6 | Q25: 0 | R25: 0 | S25: 11 | T25: 0 | U25: 0 | V25: 1 | W25: 1 | X25: =VLOOKUP(VLOOKUP(application!E25,tabsal,4,0),tabqualif,VLOOKUP(application!E25,tabsal,5,0)+2,0) -> 5.55 | Y25: 61.05
A26: 2012-05-22 | B26: 5 | C26: 2012 | D26: 21 | E26: 249 | F26: nom29 | G26: prenom29 | H26: C120405 | I26: 15 | K26: =SUMIF($E$5:E26,E26,$I$5:I26) -> 20 | L26: 20 | M26: 0 | N26: 0 | O26: =SUMIF($E$5:E25,E26,$I$5:I25) -> 5 | P26: 5 | Q26: 0 | R26: 0 | S26: 15 | T26: 0 | U26: 0 | V26: 6 | W26: 1 | X26: =VLOOKUP(VLOOKUP(application!E26,tabsal,4,0),tabqualif,VLOOKUP(application!E26,tabsal,5,0)+2,0) -> 14.15 | Y26: 212.25
A27: 2012-05-22 | B27: 5 | C27: 2012 | D27: 21 | E27: 223 | F27: nom3 | G27: prenom3 | H27: C120406 | I27: 14 | K27: =SUMIF($E$5:E27,E27,$I$5:I27) -> 21 | L27: 21 | M27: 0 | N27: 0 | O27: =SUMIF($E$5:E26,E27,$I$5:I26) -> 7 | P27: 7 | Q27: 0 | R27: 0 | S27: 14 | T27: 0 | U27: 0 | V27: 3 | W27: 1 | X27: =VLOOKUP(VLOOKUP(application!E27,tabsal,4,0),tabqualif,VLOOKUP(application!E27,tabsal,5,0)+2,0) -> 9.99 | Y27: 139.86
A28: 2012-05-22 | B28: 5 | C28: 2012 | D28: 21 | E28: 226 | F28: nom6 | G28: prenom6 | H28: C120407 | I28: 8 | K28: =SUMIF($E$5:E28,E28,$I$5:I28) -> 8 | L28: 8 | M28: 0 | N28: 0 | O28: =SUMIF($E$5:E27,E28,$I$5:I27) -> 0 | P28: 0 | Q28: 0 | R28: 0 | S28: 8 | T28: 0 | U28: 0 | V28: 2 | W28: 1 | X28: =VLOOKUP(VLOOKUP(application!E28,tabsal,4,0),tabqualif,VLOOKUP(application!E28,tabsal,5,0)+2,0) -> 9.21 | Y28: 73.68
A29: 2012-05-22 | B29: 5 | C29: 2012 | D29: 21 | E29: 229 | F29: nom9 | G29: prenom9 | H29: C120407 | I29: 7 | K29: =SUMIF($E$5:E29,E29,$I$5:I29) -> 22 | L29: 22 | M29: 0 | N29: 0 | O29: =SUMIF($E$5:E28,E29,$I$5:I28) -> 15 | P29: 15 | Q29: 0 | R29: 0 | S29: 7 | T29: 0 | U29: 0 | V29: 1 | W29: 1 | X29: =VLOOKUP(VLOOKUP(application!E29,tabsal,4,0),tabqualif,VLOOKUP(application!E29,tabsal,5,0)+2,0) -> 5.55 | Y29: 38.85
A30: 2012-05-22 | B30: 5 | C30: 2012 | D30: 21 | E30: 236 | F30: nom16 | G30: prenom16 | H30: C120408 | I30: 8 | K30: =SUMIF($E$5:E30,E30,$I$5:I30) -> 8 | L30: 8 | M30: 0 | N30: 0 | O30: =SUMIF($E$5:E29,E30,$I$5:I29) -> 0 | P30: 0 | Q30: 0 | R30: 0 | S30: 8 | T30: 0 | U30: 0 | V30: 2 | W30: 1 | X30: =VLOOKUP(VLOOKUP(application!E30,tabsal,4,0),tabqualif,VLOOKUP(application!E30,tabsal,5,0)+2,0) -> 9.21 | Y30: 73.68
A31: 2012-05-22 | B31: 5 | C31: 2012 | D31: 21 | E31: 238 | F31: nom18 | G31: prenom18 | H31: C120409 | I31: 8 | K31: =SUMIF($E$5:E31,E31,$I$5:I31) -> 13 | L31: 13 | M31: 0 | N31: 0 | O31: =SUMIF($E$5:E30,E31,$I$5:I30) -> 5 | P31: 5 | Q31: 0 | R31: 0 | S31: 8 | T31: 0 | U31: 0 | V31: 1 | W31: 2 | X31: =VLOOKUP(VLOOKUP(application!E31,tabsal,4,0),tabqualif,VLOOKUP(application!E31,tabsal,5,0)+2,0) -> 6.28 | Y31: 50.24
A32: 2012-05-23 | B32: 5 | C32: 2012 | D32: 21 | E32: 250 | F32: nom30 | G32: prenom30 | H32: C120402 | I32: 2 | K32: =SUMIF($E$5:E32,E32,$I$5:I32) -> 2 | L32: 2 | M32: 0 | N32: 0 | O32: =SUMIF($E$5:E31,E32,$I$5:I31) -> 0 | P32: 0 | Q32: 0 | R32: 0 | S32: 2 | T32: 0 | U32: 0 | V32: 6 | W32: 1 | X32: =VLOOKUP(VLOOKUP(application!E32,tabsal,4,0),tabqualif,VLOOKUP(application!E32,tabsal,5,0)+2,0) -> 14.15 | Y32: 28.3
A33: 2012-05-23 | B33: 5 | C33: 2012 | D33: 21 | E33: 222 | F33: nom2 | G33: prenom2 | H33: C120402 | I33: 12 | K33: =SUMIF($E$5:E33,E33,$I$5:I33) -> 34 | L33: 34 | M33: 0 | N33: 0 | O33: =SUMIF($E$5:E32,E33,$I$5:I32) -> 22 | P33: 22 | Q33: 0 | R33: 0 | S33: 12 | T33: 0 | U33: 0 | V33: 5 | W33: 1 | X33: =VLOOKUP(VLOOKUP(application!E33,tabsal,4,0),tabqualif,VLOOKUP(application!E33,tabsal,5,0)+2,0) -> 12.43 | Y33: 149.16
A34: 2012-05-23 | B34: 5 | C34: 2012 | D34: 21 | E34: 251 | F34: nom31 | G34: prenom31 | H34: C120403 | I34: 5 | K34: =SUMIF($E$5:E34,E34,$I$5:I34) -> 5 | L34: 5 | M34: 0 | N34: 0 | O34: =SUMIF($E$5:E33,E34,$I$5:I33) -> 0 | P34: 0 | Q34: 0 | R34: 0 | S34: 5 | T34: 0 | U34: 0 | V34: 6 | W34: 1 | X34: =VLOOKUP(VLOOKUP(application!E34,tabsal,4,0),tabqualif,VLOOKUP(application!E34,tabsal,5,0)+2,0) -> 14.15 | Y34: 70.75
A35: 2012-05-23 | B35: 5 | C35: 2012 | D35: 21 | E35: 221 | F35: nom1 | G35: prenom1 | H35: C120403 | I35: 13 | K35: =SUMIF($E$5:E35,E35,$I$5:I35) -> 19 | L35: 19 | M35: 0 | N35: 0 | O35: =SUMIF($E$5:E34,E35,$I$5:I34) -> 6 | P35: 6 | Q35: 0 | R35: 0 | S35: 13 | T35: 0 | U35: 0 | V35: 2 | W35: 2 | X35: =VLOOKUP(VLOOKUP(application!E35,tabsal,4,0),tabqualif,VLOOKUP(application!E35,tabsal,5,0)+2,0) -> 9.43 | Y35: 122.59
A36: 2012-05-23 | B36: 5 | C36: 2012 | D36: 21 | E36: 245 | F36: nom25 | G36: prenom25 | H36: C120405 | I36: 14 | K36: =SUMIF($E$5:E36,E36,$I$5:I36) -> 18 | L36: 18 | M36: 0 | N36: 0 | O36: =SUMIF($E$5:E35,E36,$I$5:I35) -> 4 | P36: 4 | Q36: 0 | R36: 0 | S36: 14 | T36: 0 | U36: 0 | V36: 2 | W36: 2 | X36: =VLOOKUP(VLOOKUP(application!E36,tabsal,4,0),tabqualif,VLOOKUP(application!E36,tabsal,5,0)+2,0) -> 9.43 | Y36: 132.02
A37: 2012-05-23 | B37: 5 | C37: 2012 | D37: 21 | E37: 225 | F37: =IF(ISBLANK($E37),"",VLOOKUP($E37,tabsal,2,0)) -> nom5 | G37: =IF(ISBLANK($E37),"",VLOOKUP($E37,tabsal,3,0)) -> prenom5 | H37: C120405 | I37: 13 | K37: =SUMIF($E$5:E37,E37,$I$5:I37) -> 13 | L37: 13 | M37: 0 | N37: 0 | O37: =SUMIF($E$5:E36,E37,$I$5:I36) -> 0 | P37: 0 | Q37: 0 | R37: 0 | S37: 13 | T37: 0 | U37: 0 | V37: =VLOOKUP(E37,tabsal,4,0) -> 2 | W37: =VLOOKUP(E37,tabsal,5,0) -> 2 | X37: =VLOOKUP(VLOOKUP(application!E37,tabsal,4,0),tabqualif,VLOOKUP(application!E37,tabsal,5,0)+2,0) -> 9.43 | Y37: 122.59
A38: 2012-05-23 | B38: 5 | C38: 2012 | D38: 21 | E38: 232 | F38: nom12 | G38: prenom12 | H38: C120406 | I38: 9 | K38: =SUMIF($E$5:E38,E38,$I$5:I38) -> 9 | L38: 9 | M38: 0 | N38: 0 | O38: =SUMIF($E$5:E37,E38,$I$5:I37) -> 0 | P38: 0 | Q38: 0 | R38: 0 | S38: 9 | T38: 0 | U38: 0 | V38: 4 | W38: 2 | X38: =VLOOKUP(VLOOKUP(application!E38,tabsal,4,0),tabqualif,VLOOKUP(application!E38,tabsal,5,0)+2,0) -> 11.68 | Y38: 105.12
A39: 2012-05-23 | B39: 5 | C39: 2012 | D39: 21 | E39: 236 | F39: nom16 | G39: prenom16 | H39: C120407 | I39: 9 | K39: =SUMIF($E$5:E39,E39,$I$5:I39) -> 17 | L39: 17 | M39: 0 | N39: 0 | O39: =SUMIF($E$5:E38,E39,$I$5:I38) -> 8 | P39: 8 | Q39: 0 | R39: 0 | S39: 9 | T39: 0 | U39: 0 | V39: 2 | W39: 1 | X39: =VLOOKUP(VLOOKUP(application!E39,tabsal,4,0),tabqualif,VLOOKUP(application!E39,tabsal,5,0)+2,0) -> 9.21 | Y39: 82.89
A40: 2012-05-23 | B40: 5 | C40: 2012 | D40: 21 | E40: 222 | F40: nom2 | G40: prenom2 | H40: C120408 | I40: 14 | K40: =SUMIF($E$5:E40,E40,$I$5:I40) -> 48 | L40: 35 | M40: =MIN(K40-L40,8) -> 8 | N40: 5 | O40: =SUMIF($E$5:E39,E40,$I$5:I39) -> 34 | P40: 34 | Q40: 0 | R40: 0 | S40: 1 | T40: 8 | U40: 5 | V40: 5 | W40: 1 | X40: =VLOOKUP(VLOOKUP(application!E40,tabsal,4,0),tabqualif,VLOOKUP(application!E40,tabsal,5,0)+2,0) -> 12.43 | Y40: 229.96
A41: 2012-05-23 | B41: 5 | C41: 2012 | D41: 21 | E41: 243 | F41: nom23 | G41: prenom23 | H41: C120409 | I41: 12 | K41: =SUMIF($E$5:E41,E41,$I$5:I41) -> 26 | L41: 26 | M41: =MIN(K41-L41,8) -> 0 | N41: 0 | O41: =SUMIF($E$5:E40,E41,$I$5:I40) -> 14 | P41: 14 | Q41: 0 | R41: 0 | S41: 12 | T41: 0 | U41: 0 | V41: 3 | W41: 2 | X41: =VLOOKUP(VLOOKUP(application!E41,tabsal,4,0),tabqualif,VLOOKUP(application!E41,tabsal,5,0)+2,0) -> 10.25 | Y41: 123
A42: 2012-05-23 | B42: 5 | C42: 2012 | D42: 21 | E42: 230 | F42: nom10 | G42: prenom10 | H42: C120409 | I42: 3 | K42: =SUMIF($E$5:E42,E42,$I$5:I42) -> 3 | L42: 3 | M42: 0 | N42: 0 | O42: =SUMIF($E$5:E41,E42,$I$5:I41) -> 0 | P42: 0 | Q42: 0 | R42: 0 | S42: 3 | T42: 0 | U42: 0 | V42: 6 | W42: 1 | X42: =VLOOKUP(VLOOKUP(application!E42,tabsal,4,0),tabqualif,VLOOKUP(application!E42,tabsal,5,0)+2,0) -> 14.15 | Y42: 42.45
A43: 2012-05-23 | B43: 5 | C43: 2012 | D43: 21 | E43: 241 | F43: nom21 | G43: prenom21 | H43: C120410 | I43: 7 | K43: =SUMIF($E$5:E43,E43,$I$5:I43) -> 7 | L43: 7 | M43: 0 | N43: 0 | O43: =SUMIF($E$5:E42,E43,$I$5:I42) -> 0 | P43: 0 | Q43: 0 | R43: 0 | S43: 7 | T43: 0 | U43: 0 | V43: 1 | W43: 1 | X43: =VLOOKUP(VLOOKUP(application!E43,tabsal,4,0),tabqualif,VLOOKUP(application!E43,tabsal,5,0)+2,0) -> 5.55 | Y43: 38.85
A44: 2012-05-23 | B44: 5 | C44: 2012 | D44: 21 | E44: 241 | F44: nom21 | G44: prenom21 | H44: C120410 | I44: 6 | K44: =SUMIF($E$5:E44,E44,$I$5:I44) -> 13 | L44: 13 | M44: 0 | N44: 0 | O44: =SUMIF($E$5:E43,E44,$I$5:I43) -> 7 | P44: 7 | Q44: 0 | R44: 0 | S44: 6 | T44: 0 | U44: 0 | V44: 1 | W44: 1 | X44: =VLOOKUP(VLOOKUP(application!E44,tabsal,4,0),tabqualif,VLOOKUP(application!E44,tabsal,5,0)+2,0) -> 5.55 | Y44: 33.3
A45: 2012-05-24 | B45: 5 | C45: 2012 | D45: 21 | E45: 224 | F45: nom4 | G45: prenom4 | H45: C120401 | I45: 11 | K45: =SUMIF($E$5:E45,E45,$I$5:I45) -> 25 | L45: 25 | M45: 0 | N45: 0 | O45: =SUMIF($E$5:E44,E45,$I$5:I44) -> 14 | P45: 14 | Q45: 0 | R45: 0 | S45: 11 | T45: 0 | U45: 0 | V45: 1 | W45: 2 | X45: =VLOOKUP(VLOOKUP(application!E45,tabsal,4,0),tabqualif,VLOOKUP(application!E45,tabsal,5,0)+2,0) -> 6.28 | Y45: 69.08
A46: 2012-05-24 | B46: 5 | C46: 2012 | D46: 21 | E46: 246 | F46: nom26 | G46: prenom26 | H46: C120401 | I46: 7 | K46: =SUMIF($E$5:E46,E46,$I$5:I46) -> 29 | L46: 29 | M46: 0 | N46: 0 | O46: =SUMIF($E$5:E45,E46,$I$5:I45) -> 22 | P46: 22 | Q46: 0 | R46: 0 | S46: 7 | T46: 0 | U46: 0 | V46: 2 | W46: 1 | X46: =VLOOKUP(VLOOKUP(application!E46,tabsal,4,0),tabqualif,VLOOKUP(application!E46,tabsal,5,0)+2,0) -> 9.21 | Y46: 64.47
A47: 2012-05-24 | B47: 5 | C47: 2012 | D47: 21 | E47: 227 | F47: nom7 | G47: prenom7 | H47: C120402 | I47: 2 | K47: =SUMIF($E$5:E47,E47,$I$5:I47) -> 16 | L47: 16 | M47: 0 | N47: 0 | O47: =SUMIF($E$5:E46,E47,$I$5:I46) -> 14 | P47: 14 | Q47: 0 | R47: 0 | S47: 2 | T47: 0 | U47: 0 | V47: 4 | W47: 1 | X47: =VLOOKUP(VLOOKUP(application!E47,tabsal,4,0),tabqualif,VLOOKUP(application!E47,tabsal,5,0)+2,0) -> 10.93 | Y47: 21.86
A48: 2012-05-24 | B48: 5 | C48: 2012 | D48: 21 | E48: 245 | F48: nom25 | G48: prenom25 | H48: C120402 | I48: 7 | K48: =SUMIF($E$5:E48,E48,$I$5:I48) -> 25 | L48: 25 | M48: 0 | N48: 0 | O48: =SUMIF($E$5:E47,E48,$I$5:I47) -> 18 | P48: 18 | Q48: 0 | R48: 0 | S48: 7 | T48: 0 | U48: 0 | V48: 2 | W48: 2 | X48: =VLOOKUP(VLOOKUP(application!E48,tabsal,4,0),tabqualif,VLOOKUP(application!E48,tabsal,5,0)+2,0) -> 9.43 | Y48: 66.01
A49: 2012-05-24 | B49: 5 | C49: 2012 | D49: 21 | E49: 232 | F49: nom12 | G49: prenom12 | H49: C120407 | I49: 11 | K49: =SUMIF($E$5:E49,E49,$I$5:I49) -> 20 | L49: 20 | M49: 0 | N49: 0 | O49: =SUMIF($E$5:E48,E49,$I$5:I48) -> 9 | P49: 9 | Q49: 0 | R49: 0 | S49: 11 | T49: 0 | U49: 0 | V49: 4 | W49: 2 | X49: =VLOOKUP(VLOOKUP(application!E49,tabsal,4,0),tabqualif,VLOOKUP(application!E49,tabsal,5,0)+2,0) -> 11.68 | Y49: 128.48
A50: 2012-05-24 | B50: 5 | C50: 2012 | D50: 21 | E50: 250 | F50: nom30 | G50: prenom30 | H50: C120407 | I50: 12 | K50: =SUMIF($E$5:E50,E50,$I$5:I50) -> 14 | L50: 14 | M50: 0 | N50: 0 | O50: =SUMIF($E$5:E49,E50,$I$5:I49) -> 2 | P50: 2 | Q50: 0 | R50: 0 | S50: 12 | T50: 0 | U50: 0 | V50: 6 | W50: 1 | X50: =VLOOKUP(VLOOKUP(application!E50,tabsal,4,0),tabqualif,VLOOKUP(application!E50,tabsal,5,0)+2,0) -> 14.15 | Y50: 169.8
A51: 2012-05-24 | B51: 5 | C51: 2012 | D51: 21 | E51: 228 | F51: nom8 | G51: prenom8 | H51: C120408 | I51: 11 | K51: =SUMIF($E$5:E51,E51,$I$5:I51) -> 11 | L51: 11 | M51: 0 | N51: 0 | O51: =SUMIF($E$5:E50,E51,$I$5:I50) -> 0 | P51: 0 | Q51: 0 | R51: 0 | S51: 11 | T51: 0 | U51: 0 | V51: 5 | W51: 1 | X51: =VLOOKUP(VLOOKUP(application!E51,tabsal,4,0),tabqualif,VLOOKUP(application!E51,tabsal,5,0)+2,0) -> 12.43 | Y51: 136.73
A52: 2012-05-24 | B52: 5 | C52: 2012 | D52: 21 | E52: 248 | F52: nom28 | G52: prenom28 | H52: C120408 | I52: 7 | K52: =SUMIF($E$5:E52,E52,$I$5:I52) -> 17 | L52: 17 | M52: 0 | N52: 0 | O52: =SUMIF($E$5:E51,E52,$I$5:I51) -> 10 | P52: 10 | Q52: 0 | R52: 0 | S52: 7 | T52: 0 | U52: 0 | V52: 3 | W52: 2 | X52: =VLOOKUP(VLOOKUP(application!E52,tabsal,4,0),tabqualif,VLOOKUP(application!E52,tabsal,5,0)+2,0) -> 10.25 | Y52: 71.75
A53: 2012-05-24 | B53: 5 | C53: 2012 | D53: 21 | E53: 244 | F53: nom24 | G53: prenom24 | H53: C120409 | I53: 12 | K53: =SUMIF($E$5:E53,E53,$I$5:I53) -> 12 | L53: 12 | M53: 0 | N53: 0 | O53: =SUMIF($E$5:E52,E53,$I$5:I52) -> 0 | P53: 0 | Q53: 0 | R53: 0 | S53: 12 | T53: 0 | U53: 0 | V53: 5 | W53: 2 | X53: =VLOOKUP(VLOOKUP(application!E53,tabsal,4,0),tabqualif,VLOOKUP(application!E53,tabsal,5,0)+2,0) -> 13.19 | Y53: 158.28
A54: 2012-05-24 | B54: 5 | C54: 2012 | D54: 21 | E54: 242 | F54: nom22 | G54: prenom22 | H54: C120409 | I54: 1 | K54: =SUMIF($E$5:E54,E54,$I$5:I54) -> 1 | L54: 1 | M54: 0 | N54: 0 | O54: =SUMIF($E$5:E53,E54,$I$5:I53) -> 0 | P54: 0 | Q54: 0 | R54: 0 | S54: 1 | T54: 0 | U54: 0 | V54: 1 | W54: 1 | X54: =VLOOKUP(VLOOKUP(application!E54,tabsal,4,0),tabqualif,VLOOKUP(application!E54,tabsal,5,0)+2,0) -> 5.55 | Y54: 5.55
D55: 0 | E55: 242 | F55: nom22 | G55: prenom22 | H55: C120401 | K55: =SUMIF($E$5:E55,E55,$I$5:I55) -> 1 | L55: 1 | M55: 0 | N55: 0 | O55: =SUMIF($E$5:E54,E55,$I$5:I54) -> 1 | P55: 1 | Q55: 0 | R55: 0 | S55: 0 | T55: 0 | U55: 0 | V55: 1 | W55: 1 | X55: =VLOOKUP(VLOOKUP(application!E55,tabsal,4,0),tabqualif,VLOOKUP(application!E55,tabsal,5,0)+2,0) -> 5.55 | Y55: 0
D56: 0 | E56: 223 | F56: nom3 | G56: prenom3 | H56: C120402 | K56: =SUMIF($E$5:E56,E56,$I$5:I56) -> 21 | L56: 21 | M56: 0 | N56: 0 | O56: =SUMIF($E$5:E55,E56,$I$5:I55) -> 21 | P56: 21 | Q56: 0 | R56: 0 | S56: 0 | T56: 0 | U56: 0 | V56: 3 | W56: 1 | X56: =VLOOKUP(VLOOKUP(application!E56,tabsal,4,0),tabqualif,VLOOKUP(application!E56,tabsal,5,0)+2,0) -> 9.99 | Y56: 0
D57: 0 | E57: 243 | F57: nom23 | G57: prenom23 | H57: C120402 | K57: =SUMIF($E$5:E57,E57,$I$5:I57) -> 26 | L57: 26 | M57: 0 | N57: =K57-L57-M57 -> 0 | O57: =SUMIF($E$5:E56,E57,$I$5:I56) -> 26 | P57: 26 | Q57: 0 | R57: 0 | S57: 0 | T57: 0 | U57: 0 | V57: 3 | W57: 2 | X57: =VLOOKUP(VLOOKUP(application!E57,tabsal,4,0),tabqualif,VLOOKUP(application!E57,tabsal,5,0)+2,0) -> 10.25 | Y57: 0
D58: 0 | E58: 245 | F58: nom25 | G58: prenom25 | H58: C120402 | K58: =SUMIF($E$5:E58,E58,$I$5:I58) -> 25 | L58: 25 | M58: 0 | N58: =K58-L58-M58 -> 0 | O58: =SUMIF($E$5:E57,E58,$I$5:I57) -> 25 | P58: 25 | Q58: 0 | R58: 0 | S58: 0 | T58: 0 | U58: 0 | V58: 2 | W58: 2 | X58: =VLOOKUP(VLOOKUP(application!E58,tabsal,4,0),tabqualif,VLOOKUP(application!E58,tabsal,5,0)+2,0) -> 9.43 | Y58: 0
D59: 0 | E59: 250 | F59: nom30 | G59: prenom30 | H59: C120404 | K59: =SUMIF($E$5:E59,E59,$I$5:I59) -> 14 | L59: 14 | M59: 0 | N59: 0 | O59: =SUMIF($E$5:E58,E59,$I$5:I58) -> 14 | P59: 14 | Q59: 0 | R59: 0 | S59: 0 | T59: 0 | U59: 0 | V59: 6 | W59: 1 | X59: =VLOOKUP(VLOOKUP(application!E59,tabsal,4,0),tabqualif,VLOOKUP(application!E59,tabsal,5,0)+2,0) -> 14.15 | Y59: 0
D60: 0 | E60: 250 | F60: nom30 | G60: prenom30 | H60: C120404 | K60: =SUMIF($E$5:E60,E60,$I$5:I60) -> 14 | L60: 14 | M60: 0 | N60: 0 | O60: =SUMIF($E$5:E59,E60,$I$5:I59) -> 14 | P60: 14 | Q60: 0 | R60: 0 | S60: 0 | T60: 0 | U60: 0 | V60: 6 | W60: 1 | X60: =VLOOKUP(VLOOKUP(application!E60,tabsal,4,0),tabqualif,VLOOKUP(application!E60,tabsal,5,0)+2,0) -> 14.15 | Y60: 0
D61: 0 | E61: 247 | F61: nom27 | G61: prenom27 | H61: C120405 | K61: =SUMIF($E$5:E61,E61,$I$5:I61) -> 0 | L61: 0 | M61: 0 | N61: 0 | O61: =SUMIF($E$5:E60,E61,$I$5:I60) -> 0 | P61: 0 | Q61: 0 | R61: 0 | S61: 0 | T61: 0 | U61: 0 | V61: 3 | W61: 1 | X61: =VLOOKUP(VLOOKUP(application!E61,tabsal,4,0),tabqualif,VLOOKUP(application!E61,tabsal,5,0)+2,0) -> 9.99 | Y61: 0
D62: 0 | E62: 246 | F62: nom26 | G62: prenom26 | H62: C120407 | K62: =SUMIF($E$5:E62,E62,$I$5:I62) -> 29 | L62: 29 | M62: 0 | N62: 0 | O62: =SUMIF($E$5:E61,E62,$I$5:I61) -> 29 | P62: 29 | Q62: 0 | R62: 0 | S62: 0 | T62: 0 | U62: 0 | V62: 2 | W62: 1 | X62: =VLOOKUP(VLOOKUP(application!E62,tabsal,4,0),tabqualif,VLOOKUP(application!E62,tabsal,5,0)+2,0) -> 9.21 | Y62: 0
D63: 0 | E63: 228 | F63: nom8 | G63: prenom8 | H63: C120407 | K63: =SUMIF($E$5:E63,E63,$I$5:I63) -> 11 | L63: 11 | M63: 0 | N63: 0 | O63: =SUMIF($E$5:E62,E63,$I$5:I62) -> 11 | P63: 11 | Q63: 0 | R63: 0 | S63: 0 | T63: 0 | U63: 0 | V63: 5 | W63: 1 | X63: =VLOOKUP(VLOOKUP(application!E63,tabsal,4,0),tabqualif,VLOOKUP(application!E63,tabsal,5,0)+2,0) -> 12.43 | Y63: 0
D64: 0 | E64: 243 | F64: nom23 | G64: prenom23 | H64: C120408 | K64: =SUMIF($E$5:E64,E64,$I$5:I64) -> 26 | L64: 26 | M64: 0 | N64: 0 | O64: =SUMIF($E$5:E63,E64,$I$5:I63) -> 26 | P64: 26 | Q64: 0 | R64: 0 | S64: 0 | T64: 0 | U64: 0 | V64: 3 | W64: 2 | X64: =VLOOKUP(VLOOKUP(application!E64,tabsal,4,0),tabqualif,VLOOKUP(application!E64,tabsal,5,0)+2,0) -> 10.25 | Y64: =CEILING(SUMPRODUCT($S$4:$U$4,S64:U64)*X64,0.01) -> 0
D65: 0 | E65: 226 | F65: nom6 | G65: prenom6 | H65: C120408 | K65: =SUMIF($E$5:E65,E65,$I$5:I65) -> 8 | L65: 8 | M65: 0 | N65: 0 | O65: =SUMIF($E$5:E64,E65,$I$5:I64) -> 8 | P65: 8 | Q65: 0 | R65: 0 | S65: 0 | T65: 0 | U65: 0 | V65: 2 | W65: 1 | X65: =VLOOKUP(VLOOKUP(application!E65,tabsal,4,0),tabqualif,VLOOKUP(application!E65,tabsal,5,0)+2,0) -> 9.21 | Y65: 0
D66: 0 | E66: 231 | F66: nom11 | G66: prenom11 | H66: C120409 | K66: =SUMIF($E$5:E66,E66,$I$5:I66) -> 6 | L66: 6 | M66: 0 | N66: 0 | O66: =SUMIF($E$5:E65,E66,$I$5:I65) -> 6 | P66: 6 | Q66: 0 | R66: 0 | S66: 0 | T66: 0 | U66: 0 | V66: 4 | W66: 2 | X66: =VLOOKUP(VLOOKUP(application!E66,tabsal,4,0),tabqualif,VLOOKUP(application!E66,tabsal,5,0)+2,0) -> 11.68 | Y66: 0
D67: 0 | E67: 248 | F67: nom28 | G67: prenom28 | H67: C120410 | K67: =SUMIF($E$5:E67,E67,$I$5:I67) -> 17 | L67: 17 | M67: 0 | N67: 0 | O67: =SUMIF($E$5:E66,E67,$I$5:I66) -> 17 | P67: 17 | Q67: 0 | R67: 0 | S67: 0 | T67: 0 | U67: 0 | V67: 3 | W67: 2 | X67: =VLOOKUP(VLOOKUP(application!E67,tabsal,4,0),tabqualif,VLOOKUP(application!E67,tabsal,5,0)+2,0) -> 10.25 | Y67: 0
A98: Totaux | I98: =SUM(I5:I67) -> 440 | S98: =SUM(S5:U67) -> 440 | Y98: =SUM(Y5:Y67) -> 4406

Sheet import (hidden)
A1: RECAPITULATIF DES HEURES EFFECTUEES
A3: Année : | E3: 2012 | F3: Semaine 21 | G3: du | H3: 41050 | I3: au | J3: 41053 | O3: nblignes | P3: 50
A4: date | B4: mois | C4: annee | D4: Numéro de semaine | E4: Matricule | F4: Nom | G4: Prénom | H4: Chantier | I4: Temps | J4: 1 | K4: 1.25 | L4: 1.5 | M4: qualif | N4: niveau | O4: taux horaire de base | P4: Montant
D5: 0 | E5: 242 | F5: nom22 | G5: prenom22 | H5: C120401 | J5: 0 | K5: 0 | L5: 0 | M5: 1 | N5: 1 | O5: 5.55 | P5: 0
D6: 0 | E6: 223 | F6: nom3 | G6: prenom3 | H6: C120402 | J6: 0 | K6: 0 | L6: 0 | M6: 3 | N6: 1 | O6: 9.99 | P6: 0
D7: 0 | E7: 243 | F7: nom23 | G7: prenom23 | H7: C120402 | J7: 0 | K7: 0 | L7: 0 | M7: 3 | N7: 2 | O7: 10.25 | P7: 0
D8: 0 | E8: 245 | F8: nom25 | G8: prenom25 | H8: C120402 | J8: 0 | K8: 0 | L8: 0 | M8: 2 | N8: 2 | O8: 9.43 | P8: 0
D9: 0 | E9: 250 | F9: nom30 | G9: prenom30 | H9: C120404 | J9: 0 | K9: 0 | L9: 0 | M9: 6 | N9: 1 | O9: 14.15 | P9: 0
D10: 0 | E10: 250 | F10: nom30 | G10: prenom30 | H10: C120404 | J10: 0 | K10: 0 | L10: 0 | M10: 6 | N10: 1 | O10: 14.15 | P10: 0
D11: 0 | E11: 247 | F11: nom27 | G11: prenom27 | H11: C120405 | J11: 0 | K11: 0 | L11: 0 | M11: 3 | N11: 1 | O11: 9.99 | P11: 0
D12: 0 | E12: 246 | F12: nom26 | G12: prenom26 | H12: C120407 | J12: 0 | K12: 0 | L12: 0 | M12: 2 | N12: 1 | O12: 9.21 | P12: 0
D13: 0 | E13: 228 | F13: nom8 | G13: prenom8 | H13: C120407 | J13: 0 | K13: 0 | L13: 0 | M13: 5 | N13: 1 | O13: 12.43 | P13: 0
D14: 0 | E14: 243 | F14: nom23 | G14: prenom23 | H14: C120408 | J14: 0 | K14: 0 | L14: 0 | M14: 3 | N14: 2 | O14: 10.25 | P14: 0
D15: 0 | E15: 226 | F15: nom6 | G15: prenom6 | H15: C120408 | J15: 0 | K15: 0 | L15: 0 | M15: 2 | N15: 1 | O15: 9.21 | P15: 0
D16: 0 | E16: 231 | F16: nom11 | G16: prenom11 | H16: C120409 | J16: 0 | K16: 0 | L16: 0 | M16: 4 | N16: 2 | O16: 11.68 | P16: 0
D17: 0 | E17: 248 | F17: nom28 | G17: prenom28 | H17: C120410 | J17: 0 | K17: 0 | L17: 0 | M17: 3 | N17: 2 | O17: 10.25 | P17: 0
A48: Totaux | I48: 440 | J48: 440 | P48: 4406

Sheet archive
A1: date | B1: mois | C1: annee | D1: Numéro de semaine | E1: Matricule | F1: Nom | G1: Prénom | H1: Chantier | I1: Temps | J1: p100% | K1: p125% | L1: p150% | M1: qualif | N1: niveau | O1: taux horaire de base | P1: Montant
A2: 41053 | B2: 5 | C2: 2012 | D2: 21 | E2: 242 | F2: nom22 | G2: prenom22 | H2: C120409 | I2: 1 | J2: 1 | K2: 0 | L2: 0 | M2: 1 | N2: 1 | O2: 5.55 | P2: 5.55
A3: 41053 | B3: 5 | C3: 2012 | D3: 21 | E3: 244 | F3: nom24 | G3: prenom24 | H3: C120409 | I3: 12 | J3: 12 | K3: 0 | L3: 0 | M3: 5 | N3: 2 | O3: 13.19 | P3: 158.28
A4: 41053 | B4: 5 | C4: 2012 | D4: 21 | E4: 248 | F4: nom28 | G4: prenom28 | H4: C120408 | I4: 7 | J4: 7 | K4: 0 | L4: 0 | M4: 3 | N4: 2 | O4: 10.25 | P4: 71.75
A5: 41053 | B5: 5 | C5: 2012 | D5: 21 | E5: 228 | F5: nom8 | G5: prenom8 | H5: C120408 | I5: 11 | J5: 11 | K5: 0 | L5: 0 | M5: 5 | N5: 1 | O5: 12.43 | P5: 136.73
A6: 41053 | B6: 5 | C6: 2012 | D6: 21 | E6: 250 | F6: nom30 | G6: prenom30 | H6: C120407 | I6: 12 | J6: 12 | K6: 0 | L6: 0 | M6: 6 | N6: 1 | O6: 14.15 | P6: 169.8
A7: 41053 | B7: 5 | C7: 2012 | D7: 21 | E7: 232 | F7: nom12 | G7: prenom12 | H7: C120407 | I7: 11 | J7: 11 | K7: 0 | L7: 0 | M7: 4 | N7: 2 | O7: 11.68 | P7: 128.48
A8: 41053 | B8: 5 | C8: 2012 | D8: 21 | E8: 245 | F8: nom25 | G8: prenom25 | H8: C120402 | I8: 7 | J8: 7 | K8: 0 | L8: 0 | M8: 2 | N8: 2 | O8: 9.43 | P8: 66.01
A9: 41053 | B9: 5 | C9: 2012 | D9: 21 | E9: 227 | F9: nom7 | G9: prenom7 | H9: C120402 | I9: 2 | J9: 2 | K9: 0 | L9: 0 | M9: 4 | N9: 1 | O9: 10.93 | P9: 21.86
A10: 41053 | B10: 5 | C10: 2012 | D10: 21 | E10: 246 | F10: nom26 | G10: prenom26 | H10: C120401 | I10: 7 | J10: 7 | K10: 0 | L10: 0 | M10: 2 | N10: 1 | O10: 9.21 | P10: 64.47
A11: 41053 | B11: 5 | C11: 2012 | D11: 21 | E11: 224 | F11: nom4 | G11: prenom4 | H11: C120401 | I11: 11 | J11: 11 | K11: 0 | L11: 0 | M11: 1 | N11: 2 | O11: 6.28 | P11: 69.08
A12: 41052 | B12: 5 | C12: 2012 | D12: 21 | E12: 241 | F12: nom21 | G12: prenom21 | H12: C120410 | I12: 6 | J12: 6 | K12: 0 | L12: 0 | M12: 1 | N12: 1 | O12: 5.55 | P12: 33.3
A13: 41052 | B13: 5 | C13: 2012 | D13: 21 | E13: 241 | F13: nom21 | G13: prenom21 | H13: C120410 | I13: 7 | J13: 7 | K13: 0 | L13: 0 | M13: 1 | N13: 1 | O13: 5.55 | P13: 38.85
A14: 41052 | B14: 5 | C14: 2012 | D14: 21 | E14: 230 | F14: nom10 | G14: prenom10 | H14: C120409 | I14: 3 | J14: 3 | K14: 0 | L14: 0 | M14: 6 | N14: 1 | O14: 14.15 | P14: 42.45
A15: 41052 | B15: 5 | C15: 2012 | D15: 21 | E15: 243 | F15: nom23 | G15: prenom23 | H15: C120409 | I15: 12 | J15: 12 | K15: 0 | L15: 0 | M15: 3 | N15: 2 | O15: 10.25 | P15: 123
A16: 41052 | B16: 5 | C16: 2012 | D16: 21 | E16: 222 | F16: nom2 | G16: prenom2 | H16: C120408 | I16: 14 | J16: 1 | K16: 8 | L16: 5 | M16: 5 | N16: 1 | O16: 12.43 | P16: 229.96
A17: 41052 | B17: 5 | C17: 2012 | D17: 21 | E17: 236 | F17: nom16 | G17: prenom16 | H17: C120407 | I17: 9 | J17: 9 | K17: 0 | L17: 0 | M17: 2 | N17: 1 | O17: 9.21 | P17: 82.89
A18: 41052 | B18: 5 | C18: 2012 | D18: 21 | E18: 232 | F18: nom12 | G18: prenom12 | H18: C120406 | I18: 9 | J18: 9 | K18: 0 | L18: 0 | M18: 4 | N18: 2 | O18: 11.68 | P18: 105.12
A19: 41052 | B19: 5 | C19: 2012 | D19: 21 | E19: 225 | F19: nom5 | G19: prenom5 | H19: C120405 | I19: 13 | J19: 13 | K19: 0 | L19: 0 | M19: 2 | N19: 2 | O19: 9.43 | P19: 122.59
A20: 41052 | B20: 5 | C20: 2012 | D20: 21 | E20: 245 | F20: nom25 | G20: prenom25 | H20: C120405 | I20: 14 | J20: 14 | K20: 0 | L20: 0 | M20: 2 | N20: 2 | O20: 9.43 | P20: 132.02
A21: 41052 | B21: 5 | C21: 2012 | D21: 21 | E21: 221 | F21: nom1 | G21: prenom1 | H21: C120403 | I21: 13 | J21: 13 | K21: 0 | L21: 0 | M21: 2 | N21: 2 | O21: 9.43 | P21: 122.59
A22: 41052 | B22: 5 | C22: 2012 | D22: 21 | E22: 251 | F22: nom31 | G22: prenom31 | H22: C120403 | I22: 5 | J22: 5 | K22: 0 | L22: 0 | M22: 6 | N22: 1 | O22: 14.15 | P22: 70.75
A23: 41052 | B23: 5 | C23: 2012 | D23: 21 | E23: 222 | F23: nom2 | G23: prenom2 | H23: C120402 | I23: 12 | J23: 12 | K23: 0 | L23: 0 | M23: 5 | N23: 1 | O23: 12.43 | P23: 149.16
A24: 41052 | B24: 5 | C24: 2012 | D24: 21 | E24: 250 | F24: nom30 | G24: prenom30 | H24: C120402 | I24: 2 | J24: 2 | K24: 0 | L24: 0 | M24: 6 | N24: 1 | O24: 14.15 | P24: 28.3
A25: 41051 | B25: 5 | C25: 2012 | D25: 21 | E25: 238 | F25: nom18 | G25: prenom18 | H25: C120409 | I25: 8 | J25: 8 | K25: 0 | L25: 0 | M25: 1 | N25: 2 | O25: 6.28 | P25: 50.24
A26: 41051 | B26: 5 | C26: 2012 | D26: 21 | E26: 236 | F26: nom16 | G26: prenom16 | H26: C120408 | I26: 8 | J26: 8 | K26: 0 | L26: 0 | M26: 2 | N26: 1 | O26: 9.21 | P26: 73.68
A27: 41051 | B27: 5 | C27: 2012 | D27: 21 | E27: 229 | F27: nom9 | G27: prenom9 | H27: C120407 | I27: 7 | J27: 7 | K27: 0 | L27: 0 | M27: 1 | N27: 1 | O27: 5.55 | P27: 38.85
A28: 41051 | B28: 5 | C28: 2012 | D28: 21 | E28: 226 | F28: nom6 | G28: prenom6 | H28: C120407 | I28: 8 | J28: 8 | K28: 0 | L28: 0 | M28: 2 | N28: 1 | O28: 9.21 | P28: 73.68
A29: 41051 | B29: 5 | C29: 2012 | D29: 21 | E29: 223 | F29: nom3 | G29: prenom3 | H29: C120406 | I29: 14 | J29: 14 | K29: 0 | L29: 0 | M29: 3 | N29: 1 | O29: 9.99 | P29: 139.86
A30: 41051 | B30: 5 | C30: 2012 | D30: 21 | E30: 249 | F30: nom29 | G30: prenom29 | H30: C120405 | I30: 15 | J30: 15 | K30: 0 | L30: 0 | M30: 6 | N30: 1 | O30: 14.15 | P30: 212.25
A31: 41051 | B31: 5 | C31: 2012 | D31: 21 | E31: 235 | F31: nom15 | G31: prenom15 | H31: C120405 | I31: 11 | J31: 11 | K31: 0 | L31: 0 | M31: 1 | N31: 1 | O31: 5.55 | P31: 61.05
A32: 41051 | B32: 5 | C32: 2012 | D32: 21 | E32: 248 | F32: nom28 | G32: prenom28 | H32: C120404 | I32: 10 | J32: 10 | K32: 0 | L32: 0 | M32: 3 | N32: 2 | O32: 10.25 | P32: 102.5
A33: 41051 | B33: 5 | C33: 2012 | D33: 21 | E33: 240 | F33: nom20 | G33: prenom20 | H33: C120404 | I33: 10 | J33: 10 | K33: 0 | L33: 0 | M33: 1 | N33: 1 | O33: 5.55 | P33: 55.5
A34: 41051 | B34: 5 | C34: 2012 | D34: 21 | E34: 227 | F34: nom7 | G34: prenom7 | H34: C120403 | I34: 9 | J34: 9 | K34: 0 | L34: 0 | M34: 4 | N34: 1 | O34: 10.93 | P34: 98.37
A35: 41051 | B35: 5 | C35: 2012 | D35: 21 | E35: 243 | F35: nom23 | G35: prenom23 | H35: C120403 | I35: 14 | J35: 14 | K35: 0 | L35: 0 | M35: 3 | N35: 2 | O35: 10.25 | P35: 143.5
A36: 41051 | B36: 5 | C36: 2012 | D36: 21 | E36: 246 | F36: nom26 | G36: prenom26 | H36: C120403 | I36: 14 | J36: 14 | K36: 0 | L36: 0 | M36: 2 | N36: 1 | O36: 9.21 | P36: 128.94
A37: 41051 | B37: 5 | C37: 2012 | D37: 21 | E37: 222 | F37: nom2 | G37: prenom2 | H37: C120403 | I37: 9 | J37: 9 | K37: 0 | L37: 0 | M37: 5 | N37: 1 | O37: 12.43 | P37: 111.87
A38: 41051 | B38: 5 | C38: 2012 | D38: 21 | E38: 238 | F38: nom18 | G38: prenom18 | H38: C120402 | I38: 5 | J38: 5 | K38: 0 | L38: 0 | M38: 1 | N38: 2 | O38: 6.28 | P38: 31.4
A39: 41051 | B39: 5 | C39: 2012 | D39: 21 | E39: 246 | F39: nom26 | G39: prenom26 | H39: C120402 | I39: 4 | J39: 4 | K39: 0 | L39: 0 | M39: 2 | N39: 1 | O39: 9.21 | P39: 36.84
A40: 41051 | B40: 5 | C40: 2012 | D40: 21 | E40: 221 | F40: nom1 | G40: prenom1 | H40: C120402 | I40: 6 | J40: 6 | K40: 0 | L40: 0 | M40: 2 | N40: 2 | O40: 9.43 | P40: 56.58
A41: 41051 | B41: 5 | C41: 2012 | D41: 21 | E41: 223 | F41: nom3 | G41: prenom3 | H41: C120401 | I41: 7 | J41: 7 | K41: 0 | L41: 0 | M41: 3 | N41: 1 | O41: 9.99 | P41: 69.93
A42: 41051 | B42: 5 | C42: 2012 | D42: 21 | E42: 227 | F42: nom7 | G42: prenom7 | H42: C120401 | I42: 5 | J42: 5 | K42: 0 | L42: 0 | M42: 4 | N42: 1 | O42: 10.93 | P42: 54.65
A43: 41050 | B43: 5 | C43: 2012 | D43: 21 | E43: 222 | F43: nom2 | G43: prenom2 | H43: C120410 | I43: 13 | J43: 13 | K43: 0 | L43: 0 | M43: 5 | N43: 1 | O43: 12.43 | P43: 161.59
A44: 41050 | B44: 5 | C44: 2012 | D44: 21 | E44: 235 | F44: nom15 | G44: prenom15 | H44: C120409 | I44: 6 | J44: 6 | K44: 0 | L44: 0 | M44: 1 | N44: 1 | O44: 5.55 | P44: 33.3
A45: 41050 | B45: 5 | C45: 2012 | D45: 21 | E45: 233 | F45: nom13 | G45: prenom13 | H45: C120408 | I45: 9 | J45: 9 | K45: 0 | L45: 0 | M45: 5 | N45: 1 | O45: 12.43 | P45: 111.87
A46: 41050 | B46: 5 | C46: 2012 | D46: 21 | E46: 224 | F46: nom4 | G46: prenom4 | H46: C120405 | I46: 14 | J46: 14 | K46: 0 | L46: 0 | M46: 1 | N46: 2 | O46: 6.28 | P46: 87.92
A47: 41050 | B47: 5 | C47: 2012 | D47: 21 | E47: 246 | F47: nom26 | G47: prenom26 | H47: C120404 | I47: 4 | J47: 4 | K47: 0 | L47: 0 | M47: 2 | N47: 1 | O47: 9.21 | P47: 36.84
A48: 41050 | B48: 5 | C48: 2012 | D48: 21 | E48: 249 | F48: nom29 | G48: prenom29 | H48: C120403 | I48: 5 | J48: 5 | K48: 0 | L48: 0 | M48: 6 | N48: 1 | O48: 14.15 | P48: 70.75
A49: 41050 | B49: 5 | C49: 2012 | D49: 21 | E49: 229 | F49: nom9 | G49: prenom9 | H49: C120402 | I49: 15 | J49: 15 | K49: 0 | L49: 0 | M49: 1 | N49: 1 | O49: 5.55 | P49: 83.25
A50: 41050 | B50: 5 | C50: 2012 | D50: 21 | E50: 245 | F50: nom25 | G50: prenom25 | H50: C120401 | I50: 4 | J50: 4 | K50: 0 | L50: 0 | M50: 2 | N50: 2 | O50: 9.43 | P50: 37.72
A51: 41050 | B51: 5 | C51: 2012 | D51: 21 | E51: 231 | F51: nom11 | G51: prenom11 | H51: C120401 | I51: 6 | J51: 6 | K51: 0 | L51: 0 | M51: 4 | N51: 2 | O51: 11.68 | P51: 70.08

Sheet recapitulatif salariés
A1: Salarié | B1: Heures | C1: Heures sup | D1: Heures | E1: temps | F1: coût
C2: 0.25 | D2: sup 50%

Sheet recap salarié
A1: annee | B1: 2012
A2: mois | B2: 5
B4: Étiquettes de colonnes
B5: 21 | G5: Total Somme de Temps | H5: Total Somme de p100% | I5: Total Somme de p125% | J5: Total Somme de p150% | K5: Total Somme de Montant
A6: Étiquettes de lignes | B6: Somme de Temps | C6: Somme de p100% | D6: Somme de p125% | E6: Somme de p150% | F6: Somme de Montant
A7: 221 | B7: 19 | C7: 19 | D7: 0 | E7: 0 | F7: 179.17 | G7: 19 | H7: 19 | I7: 0 | J7: 0 | K7: 179.17
A8: nom1 | B8: 19 | C8: 19 | D8: 0 | E8: 0 | F8: 179.17 | G8: 19 | H8: 19 | I8: 0 | J8: 0 | K8: 179.17
A9: 222 | B9: 48 | C9: 35 | D9: 8 | E9: 5 | F9: 652.58 | G9: 48 | H9: 35 | I9: 8 | J9: 5 | K9: 652.58
A10: nom2 | B10: 48 | C10: 35 | D10: 8 | E10: 5 | F10: 652.58 | G10: 48 | H10: 35 | I10: 8 | J10: 5 | K10: 652.58
A11: 223 | B11: 21 | C11: 21 | D11: 0 | E11: 0 | F11: 209.79 | G11: 21 | H11: 21 | I11: 0 | J11: 0 | K11: 209.79
A12: nom3 | B12: 21 | C12: 21 | D12: 0 | E12: 0 | F12: 209.79 | G12: 21 | H12: 21 | I12: 0 | J12: 0 | K12: 209.79
A13: 224 | B13: 25 | C13: 25 | D13: 0 | E13: 0 | F13: 157 | G13: 25 | H13: 25 | I13: 0 | J13: 0 | K13: 157
A14: nom4 | B14: 25 | C14: 25 | D14: 0 | E14: 0 | F14: 157 | G14: 25 | H14: 25 | I14: 0 | J14: 0 | K14: 157
A15: 225 | B15: 13 | C15: 13 | D15: 0 | E15: 0 | F15: 122.59 | G15: 13 | H15: 13 | I15: 0 | J15: 0 | K15: 122.59
A16: nom5 | B16: 13 | C16: 13 | D16: 0 | E16: 0 | F16: 122.59 | G16: 13 | H16: 13 | I16: 0 | J16: 0 | K16: 122.59
A17: 226 | B17: 8 | C17: 8 | D17: 0 | E17: 0 | F17: 73.68 | G17: 8 | H17: 8 | I17: 0 | J17: 0 | K17: 73.68
A18: nom6 | B18: 8 | C18: 8 | D18: 0 | E18: 0 | F18: 73.68 | G18: 8 | H18: 8 | I18: 0 | J18: 0 | K18: 73.68
A19: 227 | B19: 16 | C19: 16 | D19: 0 | E19: 0 | F19: 174.88 | G19: 16 | H19: 16 | I19: 0 | J19: 0 | K19: 174.88
A20: nom7 | B20: 16 | C20: 16 | D20: 0 | E20: 0 | F20: 174.88 | G20: 16 | H20: 16 | I20: 0 | J20: 0 | K20: 174.88
A21: 228 | B21: 11 | C21: 11 | D21: 0 | E21: 0 | F21: 136.73 | G21: 11 | H21: 11 | I21: 0 | J21: 0 | K21: 136.73
A22: nom8 | B22: 11 | C22: 11 | D22: 0 | E22: 0 | F22: 136.73 | G22: 11 | H22: 11 | I22: 0 | J22: 0 | K22: 136.73
A23: 229 | B23: 22 | C23: 22 | D23: 0 | E23: 0 | F23: 122.1 | G23: 22 | H23: 22 | I23: 0 | J23: 0 | K23: 122.1
A24: nom9 | B24: 22 | C24: 22 | D24: 0 | E24: 0 | F24: 122.1 | G24: 22 | H24: 22 | I24: 0 | J24: 0 | K24: 122.1
A25: 230 | B25: 3 | C25: 3 | D25: 0 | E25: 0 | F25: 42.45 | G25: 3 | H25: 3 | I25: 0 | J25: 0 | K25: 42.45
A26: nom10 | B26: 3 | C26: 3 | D26: 0 | E26: 0 | F26: 42.45 | G26: 3 | H26: 3 | I26: 0 | J26: 0 | K26: 42.45
A27: 231 | B27: 6 | C27: 6 | D27: 0 | E27: 0 | F27: 70.08 | G27: 6 | H27: 6 | I27: 0 | J27: 0 | K27: 70.08
A28: nom11 | B28: 6 | C28: 6 | D28: 0 | E28: 0 | F28: 70.08 | G28: 6 | H28: 6 | I28: 0 | J28: 0 | K28: 70.08
A29: 232 | B29: 20 | C29: 20 | D29: 0 | E29: 0 | F29: 233.6 | G29: 20 | H29: 20 | I29: 0 | J29: 0 | K29: 233.6
A30: nom12 | B30: 20 | C30: 20 | D30: 0 | E30: 0 | F30: 233.6 | G30: 20 | H30: 20 | I30: 0 | J30: 0 | K30: 233.6
A31: 233 | B31: 9 | C31: 9 | D31: 0 | E31: 0 | F31: 111.87 | G31: 9 | H31: 9 | I31: 0 | J31: 0 | K31: 111.87
A32: nom13 | B32: 9 | C32: 9 | D32: 0 | E32: 0 | F32: 111.87 | G32: 9 | H32: 9 | I32: 0 | J32: 0 | K32: 111.87
A33: 235 | B33: 17 | C33: 17 | D33: 0 | E33: 0 | F33: 94.35 | G33: 17 | H33: 17 | I33: 0 | J33: 0 | K33: 94.35
A34: nom15 | B34: 17 | C34: 17 | D34: 0 | E34: 0 | F34: 94.35 | G34: 17 | H34: 17 | I34: 0 | J34: 0 | K34: 94.35
A35: 236 | B35: 17 | C35: 17 | D35: 0 | E35: 0 | F35: 156.57 | G35: 17 | H35: 17 | I35: 0 | J35: 0 | K35: 156.57
A36: nom16 | B36: 17 | C36: 17 | D36: 0 | E36: 0 | F36: 156.57 | G36: 17 | H36: 17 | I36: 0 | J36: 0 | K36: 156.57
A37: 238 | B37: 13 | C37: 13 | D37: 0 | E37: 0 | F37: 81.64 | G37: 13 | H37: 13 | I37: 0 | J37: 0 | K37: 81.64
A38: nom18 | B38: 13 | C38: 13 | D38: 0 | E38: 0 | F38: 81.64 | G38: 13 | H38: 13 | I38: 0 | J38: 0 | K38: 81.64
A39: 240 | B39: 10 | C39: 10 | D39: 0 | E39: 0 | F39: 55.5 | G39: 10 | H39: 10 | I39: 0 | J39: 0 | K39: 55.5
A40: nom20 | B40: 10 | C40: 10 | D40: 0 | E40: 0 | F40: 55.5 | G40: 10 | H40: 10 | I40: 0 | J40: 0 | K40: 55.5
A41: 241 | B41: 13 | C41: 13 | D41: 0 | E41: 0 | F41: 72.15 | G41: 13 | H41: 13 | I41: 0 | J41: 0 | K41: 72.15
A42: nom21 | B42: 13 | C42: 13 | D42: 0 | E42: 0 | F42: 72.15 | G42: 13 | H42: 13 | I42: 0 | J42: 0 | K42: 72.15
A43: 242 | B43: 1 | C43: 1 | D43: 0 | E43: 0 | F43: 5.55 | G43: 1 | H43: 1 | I43: 0 | J43: 0 | K43: 5.55
A44: nom22 | B44: 1 | C44: 1 | D44: 0 | E44: 0 | F44: 5.55 | G44: 1 | H44: 1 | I44: 0 | J44: 0 | K44: 5.55
A45: 243 | B45: 26 | C45: 26 | D45: 0 | E45: 0 | F45: 266.5 | G45: 26 | H45: 26 | I45: 0 | J45: 0 | K45: 266.5
A46: nom23 | B46: 26 | C46: 26 | D46: 0 | E46: 0 | F46: 266.5 | G46: 26 | H46: 26 | I46: 0 | J46: 0 | K46: 266.5
A47: 244 | B47: 12 | C47: 12 | D47: 0 | E47: 0 | F47: 158.28 | G47: 12 | H47: 12 | I47: 0 | J47: 0 | K47: 158.28
A48: nom24 | B48: 12 | C48: 12 | D48: 0 | E48: 0 | F48: 158.28 | G48: 12 | H48: 12 | I48: 0 | J48: 0 | K48: 158.28
A49: 245 | B49: 25 | C49: 25 | D49: 0 | E49: 0 | F49: 235.75 | G49: 25 | H49: 25 | I49: 0 | J49: 0 | K49: 235.75
A50: nom25 | B50: 25 | C50: 25 | D50: 0 | E50: 0 | F50: 235.75 | G50: 25 | H50: 25 | I50: 0 | J50: 0 | K50: 235.75
A51: 246 | B51: 29 | C51: 29 | D51: 0 | E51: 0 | F51: 267.09 | G51: 29 | H51: 29 | I51: 0 | J51: 0 | K51: 267.09
A52: nom26 | B52: 29 | C52: 29 | D52: 0 | E52: 0 | F52: 267.09 | G52: 29 | H52: 29 | I52: 0 | J52: 0 | K52: 267.09
A53: 248 | B53: 17 | C53: 17 | D53: 0 | E53: 0 | F53: 174.25 | G53: 17 | H53: 17 | I53: 0 | J53: 0 | K53: 174.25
A54: nom28 | B54: 17 | C54: 17 | D54: 0 | E54: 0 | F54: 174.25 | G54: 17 | H54: 17 | I54: 0 | J54: 0 | K54: 174.25
A55: 249 | B55: 20 | C55: 20 | D55: 0 | E55: 0 | F55: 283 | G55: 20 | H55: 20 | I55: 0 | J55: 0 | K55: 283
A56: nom29 | B56: 20 | C56: 20 | D56: 0 | E56: 0 | F56: 283 | G56: 20 | H56: 20 | I56: 0 | J56: 0 | K56: 283
A57: 250 | B57: 14 | C57: 14 | D57: 0 | E57: 0 | F57: 198.1 | G57: 14 | H57: 14 | I57: 0 | J57: 0 | K57: 198.1
A58: nom30 | B58: 14 | C58: 14 | D58: 0 | E58: 0 | F58: 198.1 | G58: 14 | H58: 14 | I58: 0 | J58: 0 | K58: 198.1
A59: 251 | B59: 5 | C59: 5 | D59: 0 | E59: 0 | F59: 70.75 | G59: 5 | H59: 5 | I59: 0 | J59: 0 | K59: 70.75
A60: nom31 | B60: 5 | C60: 5 | D60: 0 | E60: 0 | F60: 70.75 | G60: 5 | H60: 5 | I60: 0 | J60: 0 | K60: 70.75
A61: Total général | B61: 440 | C61: 427 | D61: 8 | E61: 5 | F61: 4406 | G61: 440 | H61: 427 | I61: 8 | J61: 5 | K61: 4406

Sheet recap chantiers
A3: annee | B3: 2012
A5: Somme de Montant | B5: Étiquettes de colonnes
A6: Étiquettes de lignes | B6: 5 | C6: Total général
A7: C120401 | B7: 365.93 | C7: 365.93
A8: C120402 | B8: 473.4 | C8: 473.4
A9: C120403 | B9: 746.77 | C9: 746.77
A10: C120404 | B10: 194.84 | C10: 194.84
A11: C120405 | B11: 615.83 | C11: 615.83
A12: C120406 | B12: 244.98 | C12: 244.98
A13: C120407 | B13: 493.7 | C13: 493.7
A14: C120408 | B14: 623.99 | C14: 623.99
A15: C120409 | B15: 412.82 | C15: 412.82
A16: C120410 | B16: 233.74 | C16: 233.74
A17: Total général | B17: 4406 | C17: 4406
